[Event "*** SCC Grand Prix: Titled Tuesday Blitz"]
[Site "Chess.com"]
[Date "2020.07.14"]
[Round "7"]
[White "fighter2jz"]
[Black "amintabatabaei"]
[Result "0-1"]
[WhiteElo "2815"]
[BlackElo "3014"]
[TimeControl "180+1"]
[EndTime "11:20:11 PDT"]
[Termination "amintabatabaei won by resignation"]

1. e4 {[%clk 0:03:00.9]} 1... c5 {[%clk 0:02:59.5]} 2. Nf3 {[%clk 0:03:01]} 2...
Nc6 {[%clk 0:02:59]} 3. Bb5 {[%clk 0:03:00.4]} 3... e6 {[%clk 0:02:59]} 4. O-O
{[%clk 0:02:57.6]} 4... Nge7 {[%clk 0:02:58.5]} 5. d4 {[%clk 0:02:57.6]} 5...
cxd4 {[%clk 0:02:59.4]} 6. Nxd4 {[%clk 0:02:57.6]} 6... a6 {[%clk 0:02:59.8]} 7.
Nxc6 {[%clk 0:02:55.9]} 7... Nxc6 {[%clk 0:03:00.7]} 8. Be2 {[%clk 0:02:55.9]}
8... Bc5 {[%clk 0:02:57]} 9. c4 {[%clk 0:02:51.6]} 9... O-O {[%clk 0:02:55.8]}
10. Nc3 {[%clk 0:02:51.4]} 10... d6 {[%clk 0:02:55.4]} 11. Kh1 {[%clk
0:02:51.2]} 11... Bd4 {[%clk 0:02:34.8]} 12. Qd3 {[%clk 0:02:42.9]} 12... e5
{[%clk 0:02:32.4]} 13. f4 {[%clk 0:02:30.2]} 13... exf4 {[%clk 0:02:31.4]} 14.
Bxf4 {[%clk 0:02:28.3]} 14... Be5 {[%clk 0:02:31.7]} 15. Rad1 {[%clk 0:02:26.9]}
15... Be6 {[%clk 0:02:29.9]} 16. b3 {[%clk 0:02:21.5]} 16... Qh4 {[%clk
0:02:27.7]} 17. Bg3 {[%clk 0:02:01.5]} 17... Bxg3 {[%clk 0:02:22]} 18. Qxg3
{[%clk 0:02:01.5]} 18... Qxg3 {[%clk 0:02:22.5]} 19. hxg3 {[%clk 0:02:02.4]}
19... Rad8 {[%clk 0:02:23]} 20. Rd2 {[%clk 0:02:00.5]} 20... g6 {[%clk
0:01:35.5]} 21. Rfd1 {[%clk 0:01:59.6]} 21... Kg7 {[%clk 0:01:36.1]} 22. Kg1
{[%clk 0:01:50.2]} 22... h5 {[%clk 0:01:36.2]} 23. Rxd6 {[%clk 0:01:46.8]} 23...
Rxd6 {[%clk 0:01:37.1]} 24. Rxd6 {[%clk 0:01:47.1]} 24... Kf6 {[%clk 0:01:34.1]}
25. Kf2 {[%clk 0:01:40.9]} 25... Ke5 {[%clk 0:01:33.4]} 26. c5 {[%clk
0:01:36.1]} 26... Rc8 {[%clk 0:01:30.4]} 27. Ke3 {[%clk 0:01:33.4]} 27... Nb4
{[%clk 0:01:18.1]} 28. Rb6 {[%clk 0:01:27.4]} 28... Rxc5 {[%clk 0:01:06.6]} 29.
Na4 {[%clk 0:00:53.4]} 29... Nc2+ {[%clk 0:01:06.7]} 30. Kd2 {[%clk 0:00:53.3]}
30... Rc7 {[%clk 0:01:07.4]} 31. b4 {[%clk 0:00:50.8]} 31... Nd4 {[%clk
0:01:03.7]} 32. Nc5 {[%clk 0:00:49.3]} 32... Bxa2 {[%clk 0:00:51.9]} 33. Bf3
{[%clk 0:00:31.6]} 33... Nb3+ {[%clk 0:00:48.6]} 34. Ke3 {[%clk 0:00:15]} 34...
Nxc5 {[%clk 0:00:48.6]} 35. bxc5 {[%clk 0:00:15.9]} 35... Be6 {[%clk 0:00:49]}
36. Be2 {[%clk 0:00:14.2]} 36... Rxc5 {[%clk 0:00:45.9]} 37. Rxb7 {[%clk
0:00:14.4]} 37... Rc3+ {[%clk 0:00:46.6]} 38. Kd2 {[%clk 0:00:13.2]} 38... Rxg3
{[%clk 0:00:45.2]} 39. Bf3 {[%clk 0:00:13.7]} 39... Bh3 {[%clk 0:00:36.8]} 40.
Rxf7 {[%clk 0:00:10.9]} 40... Bxg2 {[%clk 0:00:37]} 41. Be2 {[%clk 0:00:10.4]}
41... Bxe4 {[%clk 0:00:37.1]} 42. Bxa6 {[%clk 0:00:10.2]} 42... Bf5 {[%clk
0:00:34.9]} 43. Ke2 {[%clk 0:00:09.5]} 43... Ra3 {[%clk 0:00:34.5]} 44. Bc4
{[%clk 0:00:09.1]} 44... h4 {[%clk 0:00:34.7]} 45. Kf2 {[%clk 0:00:08.9]} 45...
Rc3 {[%clk 0:00:31.7]} 46. Be2 {[%clk 0:00:08.3]} 46... Kf4 {[%clk 0:00:30.7]}
47. Rh7 {[%clk 0:00:06.6]} 47... g5 {[%clk 0:00:30.3]} 48. Rd7 {[%clk
0:00:06.9]} 48... Bxd7 {[%clk 0:00:29.9]} 0-1

[Event "*** SCC Grand Prix: Titled Tuesday Blitz"]
[Site "Chess.com"]
[Date "2020.07.14"]
[Round "7"]
[White "swayamsm"]
[Black "JSMastropiero"]
[Result "1-0"]
[WhiteElo "2602"]
[BlackElo "2415"]
[TimeControl "180+1"]
[EndTime "11:20:11 PDT"]
[Termination "swayamsm won by resignation"]

1. d4 {[%clk 0:03:00.9]} 1... Nf6 {[%clk 0:02:58.3]} 2. Nf3 {[%clk 0:03:00.7]}
2... g6 {[%clk 0:02:57]} 3. Bf4 {[%clk 0:02:58.7]} 3... d6 {[%clk 0:02:54.4]} 4.
Nbd2 {[%clk 0:02:58.5]} 4... Nh5 {[%clk 0:02:52.5]} 5. Bg3 {[%clk 0:02:53.5]}
5... Nxg3 {[%clk 0:02:49.2]} 6. hxg3 {[%clk 0:02:54.4]} 6... Bg7 {[%clk
0:02:48.2]} 7. c3 {[%clk 0:02:55.3]} 7... Nc6 {[%clk 0:02:39.6]} 8. e3 {[%clk
0:02:55.5]} 8... e5 {[%clk 0:02:36]} 9. Qb3 {[%clk 0:02:54.7]} 9... O-O {[%clk
0:02:31.3]} 10. O-O-O {[%clk 0:02:53.1]} 10... a5 {[%clk 0:02:10.4]} 11. Bb5
{[%clk 0:02:50.3]} 11... a4 {[%clk 0:02:03.2]} 12. Bxa4 {[%clk 0:02:49.9]} 12...
Na5 {[%clk 0:01:58.2]} 13. Qc2 {[%clk 0:02:49.1]} 13... exd4 {[%clk 0:01:55.8]}
14. cxd4 {[%clk 0:02:45.1]} 14... Be6 {[%clk 0:01:46.5]} 15. Nb3 {[%clk
0:02:38.7]} 15... Nc6 {[%clk 0:01:28.7]} 16. Bxc6 {[%clk 0:02:18.1]} 16... bxc6
{[%clk 0:01:29.6]} 17. a3 {[%clk 0:02:15.7]} 17... Qb8 {[%clk 0:01:21.6]} 18.
Rd3 {[%clk 0:02:15.8]} 18... Bf5 {[%clk 0:01:18.9]} 19. Ng5 {[%clk 0:02:12.4]}
19... Qb5 {[%clk 0:01:11.9]} 20. e4 {[%clk 0:02:11.3]} 20... Be6 {[%clk
0:01:10.7]} 21. Nxe6 {[%clk 0:02:08.1]} 21... fxe6 {[%clk 0:01:10.3]} 22. f4
{[%clk 0:02:06.1]} 22... Rfb8 {[%clk 0:01:06.1]} 23. e5 {[%clk 0:02:03.2]} 23...
Ra4 {[%clk 0:01:03.2]} 24. Rc3 {[%clk 0:02:01]} 24... c5 {[%clk 0:00:57.8]} 25.
dxc5 {[%clk 0:01:59.3]} 25... dxe5 {[%clk 0:00:57.8]} 26. Nd2 {[%clk 0:01:57.8]}
26... exf4 {[%clk 0:00:52.9]} 27. Rb3 {[%clk 0:01:57.2]} 27... Qe8 {[%clk
0:00:47.8]} 28. Rxb8 {[%clk 0:01:55.8]} 28... Qxb8 {[%clk 0:00:46.8]} 29. Qxa4
{[%clk 0:01:54.6]} 29... Qxb2+ {[%clk 0:00:46.4]} 30. Kd1 {[%clk 0:01:54.9]}
30... Qa1+ {[%clk 0:00:46.5]} 31. Kc2 {[%clk 0:01:52.8]} 31... Qc3+ {[%clk
0:00:37.9]} 32. Kd1 {[%clk 0:01:51.8]} 32... Qa1+ {[%clk 0:00:37.8]} 33. Ke2
{[%clk 0:01:51.9]} 33... Qxh1 {[%clk 0:00:33]} 34. Qe8+ {[%clk 0:01:51.8]} 34...
Bf8 {[%clk 0:00:32.5]} 35. Qxe6+ {[%clk 0:01:52.7]} 35... Kg7 {[%clk 0:00:33]}
36. Qe5+ {[%clk 0:01:52.3]} 36... Kg8 {[%clk 0:00:33.2]} 37. Qd5+ {[%clk
0:01:51.7]} 37... Kg7 {[%clk 0:00:31.4]} 38. gxf4 {[%clk 0:01:51.9]} 38... Qg1
{[%clk 0:00:29.6]} 39. Nb3 {[%clk 0:01:44.9]} 39... Qb1 {[%clk 0:00:25.4]} 40.
Nd4 {[%clk 0:01:25.9]} 40... Qb2+ {[%clk 0:00:21.6]} 41. Kf1 {[%clk 0:01:25.6]}
41... Qc1+ {[%clk 0:00:21.4]} 42. Ke2 {[%clk 0:01:22]} 42... Qb2+ {[%clk
0:00:18.9]} 43. Kd1 {[%clk 0:01:17.3]} 43... Qa1+ {[%clk 0:00:17.4]} 44. Kc2
{[%clk 0:01:16.7]} 44... Kh6 {[%clk 0:00:10.9]} 45. Qg5+ {[%clk 0:00:44.1]}
45... Kg7 {[%clk 0:00:10.4]} 46. Qe5+ {[%clk 0:00:45]} 46... Kh6 {[%clk
0:00:10.5]} 47. Nf5+ {[%clk 0:00:40.3]} 47... gxf5 {[%clk 0:00:09]} 48. Qxa1
{[%clk 0:00:41.2]} 1-0

[Event "*** SCC Grand Prix: Titled Tuesday Blitz"]
[Site "Chess.com"]
[Date "2020.07.14"]
[Round "7"]
[White "fabianvivasz"]
[Black "stolencandy13"]
[Result "1-0"]
[WhiteElo "2265"]
[BlackElo "2413"]
[TimeControl "180+1"]
[EndTime "11:20:11 PDT"]
[Termination "fabianvivasz won on time"]

1. e4 {[%clk 0:02:57.5]} 1... c6 {[%clk 0:02:56.9]} 2. Nf3 {[%clk 0:02:54.4]}
2... d5 {[%clk 0:02:57.8]} 3. Nc3 {[%clk 0:02:54.8]} 3... Bg4 {[%clk 0:02:56.9]}
4. h3 {[%clk 0:02:54.4]} 4... Bxf3 {[%clk 0:02:55.5]} 5. Qxf3 {[%clk 0:02:55.3]}
5... Nf6 {[%clk 0:02:56.1]} 6. d3 {[%clk 0:02:48.3]} 6... e6 {[%clk 0:02:54.6]}
7. Bd2 {[%clk 0:02:45.5]} 7... Nbd7 {[%clk 0:02:51.5]} 8. O-O-O {[%clk
0:02:41.9]} 8... Bb4 {[%clk 0:02:49]} 9. g4 {[%clk 0:02:38.7]} 9... Qc7 {[%clk
0:02:31]} 10. g5 {[%clk 0:02:31.8]} 10... Ng8 {[%clk 0:02:30.2]} 11. Kb1 {[%clk
0:02:19.8]} 11... Ne7 {[%clk 0:02:29.1]} 12. h4 {[%clk 0:02:02.6]} 12... O-O-O
{[%clk 0:02:19.1]} 13. Qxf7 {[%clk 0:01:47.7]} 13... Nc5 {[%clk 0:02:04.5]} 14.
Nxd5 {[%clk 0:01:06.2]} 14... Nxd5 {[%clk 0:01:46.5]} 15. Qxc7+ {[%clk
0:01:07.1]} 15... Kxc7 {[%clk 0:01:45.2]} 16. exd5 {[%clk 0:01:02.7]} 16... Bxd2
{[%clk 0:01:45.3]} 17. Rxd2 {[%clk 0:01:00.4]} 17... exd5 {[%clk 0:01:45.9]} 18.
Bh3 {[%clk 0:00:54.1]} 18... Rhf8 {[%clk 0:01:44.4]} 19. Re1 {[%clk 0:00:48.1]}
19... Rf7 {[%clk 0:01:27]} 20. Bg4 {[%clk 0:00:40.1]} 20... a5 {[%clk
0:01:22.6]} 21. f3 {[%clk 0:00:37.3]} 21... Kd6 {[%clk 0:01:11.2]} 22. d4 {[%clk
0:00:34.9]} 22... Na6 {[%clk 0:01:08.1]} 23. Re6+ {[%clk 0:00:33.5]} 23... Kc7
{[%clk 0:01:07.8]} 24. Rde2 {[%clk 0:00:33.4]} 24... Rdf8 {[%clk 0:01:02]} 25.
h5 {[%clk 0:00:29.3]} 25... Kb6 {[%clk 0:00:55.4]} 26. a3 {[%clk 0:00:24.3]}
26... Nc7 {[%clk 0:00:54.6]} 27. Re7 {[%clk 0:00:23.8]} 27... Nb5 {[%clk
0:00:53.9]} 28. c3 {[%clk 0:00:21.9]} 28... Nd6 {[%clk 0:00:54]} 29. g6 {[%clk
0:00:20.3]} 29... hxg6 {[%clk 0:00:51.1]} 30. hxg6 {[%clk 0:00:21.2]} 30... Rxe7
{[%clk 0:00:35.5]} 31. Rxe7 {[%clk 0:00:22.1]} 31... Rg8 {[%clk 0:00:34]} 32.
Be6 {[%clk 0:00:21.6]} 32... Rf8 {[%clk 0:00:33.5]} 33. Rxg7 {[%clk 0:00:16.1]}
33... Rxf3 {[%clk 0:00:33.4]} 34. Rd7 {[%clk 0:00:15.3]} 34... Nc4 {[%clk
0:00:27.1]} 35. g7 {[%clk 0:00:15]} 35... Rf1+ {[%clk 0:00:21]} 36. Kc2 {[%clk
0:00:12.8]} 36... Rf2+ {[%clk 0:00:19.8]} 37. Kd1 {[%clk 0:00:12.2]} 37... Nxb2+
{[%clk 0:00:17.8]} 38. Kc1 {[%clk 0:00:08.6]} 38... Nd3+ {[%clk 0:00:16.4]} 39.
Kb1 {[%clk 0:00:09]} 39... Rf1+ {[%clk 0:00:07.4]} 40. Kc2 {[%clk 0:00:07.5]}
40... Ne1+ {[%clk 0:00:06.8]} 41. Kd1 {[%clk 0:00:07.3]} 41... Ng2+ {[%clk
0:00:02.7]} 42. Ke2 {[%clk 0:00:06.5]} 1-0

[Event "*** SCC Grand Prix: Titled Tuesday Blitz"]
[Site "Chess.com"]
[Date "2020.07.14"]
[Round "7"]
[White "VladaSviridova"]
[Black "dpopadic"]
[Result "1/2-1/2"]
[WhiteElo "2119"]
[BlackElo "2310"]
[TimeControl "180+1"]
[EndTime "11:20:11 PDT"]
[Termination "Game drawn by agreement"]

1. d4 {[%clk 0:03:00.4]} 1... Nf6 {[%clk 0:02:59.7]} 2. c4 {[%clk 0:03:00.7]}
2... g6 {[%clk 0:02:59.4]} 3. Nc3 {[%clk 0:03:00]} 3... Bg7 {[%clk 0:03:00]} 4.
e4 {[%clk 0:02:59.8]} 4... d6 {[%clk 0:03:00.9]} 5. Nf3 {[%clk 0:02:59.9]} 5...
O-O {[%clk 0:03:01.2]} 6. Be2 {[%clk 0:03:00.1]} 6... e5 {[%clk 0:03:00.2]} 7.
O-O {[%clk 0:03:00]} 7... Na6 {[%clk 0:02:59.9]} 8. Be3 {[%clk 0:02:57.8]} 8...
Ng4 {[%clk 0:02:59]} 9. Bg5 {[%clk 0:02:58]} 9... Qe8 {[%clk 0:02:58.9]} 10.
dxe5 {[%clk 0:02:55.7]} 10... dxe5 {[%clk 0:02:57.8]} 11. h3 {[%clk 0:02:55.5]}
11... f6 {[%clk 0:02:56.7]} 12. Bd2 {[%clk 0:02:43.8]} 12... Nh6 {[%clk
0:02:56.2]} 13. c5 {[%clk 0:02:40.9]} 13... Nxc5 {[%clk 0:02:47.2]} 14. Qc1
{[%clk 0:02:41]} 14... Nf7 {[%clk 0:02:46]} 15. Nd5 {[%clk 0:02:39.6]} 15... Ne6
{[%clk 0:02:45.8]} 16. Nxc7 {[%clk 0:02:39.2]} 16... Nxc7 {[%clk 0:02:44.2]} 17.
Qxc7 {[%clk 0:02:39]} 17... Nd8 {[%clk 0:02:37.1]} 18. Bb4 {[%clk 0:02:21.3]}
18... Rf7 {[%clk 0:02:35.7]} 19. Qc2 {[%clk 0:02:12.7]} 19... Nc6 {[%clk
0:02:34.3]} 20. Bc3 {[%clk 0:02:09.9]} 20... Be6 {[%clk 0:02:33.5]} 21. Bb5
{[%clk 0:02:07]} 21... Rc8 {[%clk 0:02:32.4]} 22. a3 {[%clk 0:01:52.5]} 22... a6
{[%clk 0:02:31.1]} 23. Bxc6 {[%clk 0:01:47.2]} 23... Qxc6 {[%clk 0:02:27.1]} 24.
Rfd1 {[%clk 0:01:34.5]} 24... Qb6 {[%clk 0:02:25.7]} 25. Qe2 {[%clk 0:01:25.4]}
25... Bc4 {[%clk 0:02:15.6]} 26. Qd2 {[%clk 0:01:22.3]} 26... Bb3 {[%clk
0:02:13.4]} 27. Re1 {[%clk 0:01:16.5]} 27... Rd8 {[%clk 0:02:13.2]} 28. Qe2
{[%clk 0:01:13.6]} 28... Rfd7 {[%clk 0:02:10.4]} 29. Qe3 {[%clk 0:01:05.5]}
29... Qxe3 {[%clk 0:01:56.1]} 30. Rxe3 {[%clk 0:01:05.3]} 30... Bf8 {[%clk
0:01:53.1]} 31. Ree1 {[%clk 0:01:00.2]} 31... Bc5 {[%clk 0:01:50.5]} 32. Rac1
{[%clk 0:00:56.1]} 32... Bb6 {[%clk 0:01:47.4]} 33. Bb4 {[%clk 0:00:52.1]} 33...
Rd1 {[%clk 0:01:39.9]} 34. Be7 {[%clk 0:00:45.3]} 34... Rxc1 {[%clk 0:01:34.6]}
35. Rxc1 {[%clk 0:00:44.7]} 35... Rd1+ {[%clk 0:01:16.3]} 36. Rxd1 {[%clk
0:00:44.5]} 36... Bxd1 {[%clk 0:01:16.2]} 37. Bxf6 {[%clk 0:00:44.8]} 37... Bc2
{[%clk 0:01:16.4]} 38. Nxe5 {[%clk 0:00:43]} 38... Bxe4 {[%clk 0:01:13.6]} 39.
Nc4 {[%clk 0:00:42.4]} 39... Bc5 {[%clk 0:01:09.3]} 40. b4 {[%clk 0:00:40.5]}
40... Bf8 {[%clk 0:01:03.8]} 41. f3 {[%clk 0:00:36.6]} 41... Bd3 {[%clk
0:01:01.8]} 42. Ne5 {[%clk 0:00:34.2]} 42... Bb5 {[%clk 0:00:53.6]} 43. Kf2
{[%clk 0:00:33.7]} 43... Bd6 {[%clk 0:00:53]} 44. g4 {[%clk 0:00:30]} 44... Bxe5
{[%clk 0:00:52.8]} 45. Bxe5 {[%clk 0:00:30.4]} 45... Kf7 {[%clk 0:00:52.9]} 46.
Ke3 {[%clk 0:00:29]} 46... Bf1 {[%clk 0:00:51.7]} 47. h4 {[%clk 0:00:29]} 47...
h5 {[%clk 0:00:49.1]} 48. gxh5 {[%clk 0:00:28.7]} 48... gxh5 {[%clk 0:00:49.2]}
49. Kf4 {[%clk 0:00:28.3]} 49... Kg6 {[%clk 0:00:48.5]} 50. Bc7 {[%clk
0:00:26.8]} 50... Bd3 {[%clk 0:00:48]} 51. Bd8 {[%clk 0:00:26.9]} 51... Bc2
{[%clk 0:00:47.8]} 52. Ke5 {[%clk 0:00:27.2]} 52... Bd1 {[%clk 0:00:43.2]} 53.
f4 {[%clk 0:00:23.9]} 53... Bc2 {[%clk 0:00:43.2]} 54. Bg5 {[%clk 0:00:22.3]}
54... Bb1 {[%clk 0:00:42.2]} 55. Kd5 {[%clk 0:00:21.4]} 55... Kf5 {[%clk
0:00:41.4]} 56. Kc5 {[%clk 0:00:21.7]} 56... Be4 {[%clk 0:00:41]} 57. Kb6 {[%clk
0:00:21.4]} 57... Bf3 {[%clk 0:00:40.8]} 58. a4 {[%clk 0:00:21.7]} 58... Be4
{[%clk 0:00:40.9]} 59. b5 {[%clk 0:00:21.9]} 59... axb5 {[%clk 0:00:40.9]} 60.
axb5 {[%clk 0:00:22.2]} 60... Bf3 {[%clk 0:00:40.3]} 1/2-1/2

[Event "*** SCC Grand Prix: Titled Tuesday Blitz"]
[Site "Chess.com"]
[Date "2020.07.14"]
[Round "7"]
[White "doons21"]
[Black "Oligan22"]
[Result "1-0"]
[WhiteElo "2651"]
[BlackElo "2459"]
[TimeControl "180+1"]
[EndTime "11:20:12 PDT"]
[Termination "doons21 won on time"]

1. e4 {[%clk 0:03:00.9]} 1... c5 {[%clk 0:03:00]} 2. c3 {[%clk 0:03:00.7]} 2...
d5 {[%clk 0:02:59.2]} 3. exd5 {[%clk 0:03:00.6]} 3... Qxd5 {[%clk 0:03:00.1]} 4.
d4 {[%clk 0:03:00.3]} 4... Nf6 {[%clk 0:03:00]} 5. Nf3 {[%clk 0:02:59.3]} 5...
e6 {[%clk 0:03:00.1]} 6. Bd3 {[%clk 0:02:57.7]} 6... Be7 {[%clk 0:02:59.3]} 7.
O-O {[%clk 0:02:53.8]} 7... cxd4 {[%clk 0:02:58.5]} 8. cxd4 {[%clk 0:02:53.5]}
8... Nc6 {[%clk 0:02:59.1]} 9. Nc3 {[%clk 0:02:50.8]} 9... Qd6 {[%clk
0:02:59.3]} 10. Nb5 {[%clk 0:02:12.8]} 10... Qd8 {[%clk 0:02:52.3]} 11. Bf4
{[%clk 0:02:13.3]} 11... Nd5 {[%clk 0:02:51.2]} 12. Bg3 {[%clk 0:02:13.9]} 12...
a6 {[%clk 0:02:48]} 13. Nc3 {[%clk 0:02:14.4]} 13... Bf6 {[%clk 0:02:16]} 14.
Rc1 {[%clk 0:01:58]} 14... O-O {[%clk 0:02:09.3]} 15. Bb1 {[%clk 0:01:52.3]}
15... Nce7 {[%clk 0:01:55.4]} 16. Ne4 {[%clk 0:01:21.8]} 16... Nf5 {[%clk
0:01:54.4]} 17. Nxf6+ {[%clk 0:01:22.2]} 17... Qxf6 {[%clk 0:01:51.3]} 18. Be5
{[%clk 0:01:22.8]} 18... Qe7 {[%clk 0:01:36.2]} 19. a3 {[%clk 0:01:18.9]} 19...
Bd7 {[%clk 0:01:32.4]} 20. Re1 {[%clk 0:01:19.4]} 20... Qd8 {[%clk 0:01:17.1]}
21. Qd3 {[%clk 0:01:14.2]} 21... Bb5 {[%clk 0:01:05.2]} 22. Qe4 {[%clk
0:01:13.2]} 22... g6 {[%clk 0:00:28.3]} 23. h4 {[%clk 0:01:12.6]} 23... Bc6
{[%clk 0:00:27.3]} 24. Qg4 {[%clk 0:01:09.7]} 24... Nf6 {[%clk 0:00:26.5]} 25.
Qh3 {[%clk 0:00:40.8]} 25... Nd5 {[%clk 0:00:14.3]} 26. h5 {[%clk 0:00:36.8]}
26... f6 {[%clk 0:00:10.4]} 27. Bh2 {[%clk 0:00:35.4]} 27... Qd7 {[%clk
0:00:10.4]} 28. Qg4 {[%clk 0:00:29.8]} 28... Qg7 {[%clk 0:00:09.8]} 29. hxg6
{[%clk 0:00:29.5]} 29... Qxg6 {[%clk 0:00:10.7]} 30. Qxg6+ {[%clk 0:00:29]}
30... hxg6 {[%clk 0:00:11.6]} 31. Rxe6 {[%clk 0:00:29.4]} 31... Kf7 {[%clk
0:00:12.1]} 32. Rce1 {[%clk 0:00:27.5]} 32... Rfe8 {[%clk 0:00:12.4]} 33. Rxe8
{[%clk 0:00:27.4]} 33... Bxe8 {[%clk 0:00:13.3]} 34. Nd2 {[%clk 0:00:19.9]}
34... Nxd4 {[%clk 0:00:11.8]} 35. Nc4 {[%clk 0:00:15.7]} 35... Bc6 {[%clk
0:00:08.4]} 36. Ba2 {[%clk 0:00:12.7]} 36... Kg7 {[%clk 0:00:05.5]} 37. Na5
{[%clk 0:00:10.9]} 37... Nc2 {[%clk 0:00:03.3]} 38. Rc1 {[%clk 0:00:08.8]} 38...
Nd4 {[%clk 0:00:03.6]} 39. Rd1 {[%clk 0:00:08.6]} 39... Nf5 {[%clk 0:00:02.3]}
40. Bxd5 {[%clk 0:00:08.1]} 40... Rd8 {[%clk 0:00:01.3]} 41. Bf3 {[%clk
0:00:07.3]} 1-0

[Event "*** SCC Grand Prix: Titled Tuesday Blitz"]
[Site "Chess.com"]
[Date "2020.07.14"]
[Round "7"]
[White "frederiksvane"]
[Black "Ermito2020"]
[Result "1-0"]
[WhiteElo "2691"]
[BlackElo "2521"]
[TimeControl "180+1"]
[EndTime "11:20:13 PDT"]
[Termination "frederiksvane won on time"]

1. e4 {[%clk 0:03:00.9]} 1... c6 {[%clk 0:02:59.6]} 2. Nf3 {[%clk 0:02:57.2]}
2... d5 {[%clk 0:03:00.5]} 3. Nc3 {[%clk 0:02:57.6]} 3... Bg4 {[%clk 0:03:00.1]}
4. h3 {[%clk 0:02:57.4]} 4... Bh5 {[%clk 0:03:00.3]} 5. exd5 {[%clk 0:02:56.4]}
5... cxd5 {[%clk 0:02:59.9]} 6. g4 {[%clk 0:02:56.7]} 6... Bg6 {[%clk
0:02:59.8]} 7. Bb5+ {[%clk 0:02:57.3]} 7... Nc6 {[%clk 0:03:00.3]} 8. Ne5 {[%clk
0:02:57.5]} 8... Rc8 {[%clk 0:03:00.3]} 9. d4 {[%clk 0:02:56.9]} 9... e6 {[%clk
0:02:59.7]} 10. Qe2 {[%clk 0:02:57.2]} 10... Bd6 {[%clk 0:02:27.5]} 11. h4
{[%clk 0:02:49]} 11... Bxe5 {[%clk 0:02:24.2]} 12. Qxe5 {[%clk 0:02:27]} 12...
Qf6 {[%clk 0:02:12.7]} 13. Qe2 {[%clk 0:02:13]} 13... h5 {[%clk 0:01:56]} 14. g5
{[%clk 0:02:09.6]} 14... Qxd4 {[%clk 0:01:53.3]} 15. Be3 {[%clk 0:02:09.2]}
15... Qb4 {[%clk 0:01:43.3]} 16. O-O-O {[%clk 0:01:47.5]} 16... Ne7 {[%clk
0:01:42.8]} 17. a3 {[%clk 0:01:34.2]} 17... Qa5 {[%clk 0:01:42.2]} 18. Bc5
{[%clk 0:01:22.9]} 18... a6 {[%clk 0:01:42]} 19. Bxe7 {[%clk 0:01:13.6]} 19...
axb5 {[%clk 0:01:33.4]} 20. Bc5 {[%clk 0:01:12.7]} 20... b4 {[%clk 0:01:26.3]}
21. axb4 {[%clk 0:01:09.5]} 21... Nxb4 {[%clk 0:01:22.4]} 22. Bxb4 {[%clk
0:01:09]} 22... Qxb4 {[%clk 0:01:21]} 23. Rxd5 {[%clk 0:00:38.8]} 23... O-O
{[%clk 0:00:35.1]} 24. Rb5 {[%clk 0:00:38.2]} 24... Qf4+ {[%clk 0:00:34.8]} 25.
Kb1 {[%clk 0:00:38.6]} 25... Rxc3 {[%clk 0:00:27.4]} 26. bxc3 {[%clk 0:00:35]}
26... Ra8 {[%clk 0:00:28]} 27. Rb4 {[%clk 0:00:21.3]} 27... Qf5 {[%clk
0:00:27.6]} 28. Rd1 {[%clk 0:00:12]} 28... Qa5 {[%clk 0:00:26.5]} 29. Kc1 {[%clk
0:00:10]} 29... Qa3+ {[%clk 0:00:26.3]} 30. Kd2 {[%clk 0:00:09.4]} 30... Qa2
{[%clk 0:00:22]} 31. Ke1 {[%clk 0:00:08.4]} 31... Qa3 {[%clk 0:00:16.9]} 32. Rc4
{[%clk 0:00:05.7]} 32... Qb2 {[%clk 0:00:10.4]} 33. Kf1 {[%clk 0:00:03.6]} 33...
Qb6 {[%clk 0:00:08.7]} 34. Kg1 {[%clk 0:00:02.4]} 34... Ra2 {[%clk 0:00:07.9]}
35. Rb4 {[%clk 0:00:02.2]} 35... Qc7 {[%clk 0:00:06.2]} 36. Qc4 {[%clk
0:00:02.4]} 36... Qxc4 {[%clk 0:00:02.2]} 37. Rxc4 {[%clk 0:00:03.3]} 37... Bxc2
{[%clk 0:00:01.2]} 38. Rd2 {[%clk 0:00:03.7]} 38... Ra1+ {[%clk 0:00:01.1]} 39.
Kg2 {[%clk 0:00:04]} 39... Bf5 {[%clk 0:00:01.6]} 40. Rc8+ {[%clk 0:00:04]}
40... Kh7 {[%clk 0:00:01.5]} 41. Rc7 {[%clk 0:00:04.9]} 41... Kg6 {[%clk
0:00:01.3]} 42. Kg3 {[%clk 0:00:05.4]} 1-0